{"text_format":"3","workbook":"xlsx","n_sheets":4,"sheets":["Přehled rozpočtu","Souhrn rozpočtu","Měsíční výdaje","Dodatečné informace"],"not_rendered":{"charts":1,"images":4,"defined_names":7,"pivot_tables":2},"read":"whole","date_system":"1900"}

{"sheet":"Přehled rozpočtu","index":0,"n_rows":12,"n_cols":8,"rows_kept":12,"merged":[[1,1,1,2],[2,1,2,2],[3,1,3,2],[4,1,4,2]]}
[{"$nulls":7}," "]
[null,"Rozvaha"]
[null,"Předpokládaný zůstatek",null,{"$f":"Předpokládané_příjmy-Předpokládané_výdaje","v":{"v":1585,"d":"1,585 Kč"}},null,"Předpokládané příjmy minus výdaje"]
[null,"Skutečný zůstatek ",null,{"$f":"Skutečné_příjmy-Skutečné_výdaje","v":{"v":1740,"d":"1,740 Kč"}},null,"Skutečné příjmy minus výdaje"]
[null,"Rozdíl",null,{"$f":"D4-D3","v":{"v":155,"d":"155 Kč"}},null,"Skutečný minus předpokládaný zůstatek"]
[null,"Příjem",{"$nulls":3},"Výdaje"]
[null,null,"Předpokládané","Skutečné",null,"Předpokládané","Skutečné"]
[null,"Příjem 1",{"v":6000,"d":"6,000 Kč"},{"v":5800,"d":"5,800 Kč"},null,{"$f":"SUM(Tabulka_měsíčních_výdajů[Předpokládané náklady])","v":{"v":7915,"d":"7,915 Kč"}},{"$f":"SUM(Tabulka_měsíčních_výdajů[Skutečné náklady])","v":{"v":7860,"d":"7,860 Kč"}}]
[null,"Příjem 2",{"v":1000,"d":"1,000 Kč"},{"v":2300,"d":"2,300 Kč"}]
[null,"Jiné příjmy",{"v":2500,"d":"2,500 Kč"},{"v":1500,"d":"1,500 Kč"}]
[null,"Celkové příjmy",{"$f":"SUM(C8:C10)","v":{"v":9500,"d":"9,500 Kč"}},{"$f":"SUM(D8:D10)","v":{"v":9600,"d":"9,600 Kč"}}]
[null,"Přehled skutečných výdajů"]

{"sheet":"Souhrn rozpočtu","index":1,"n_rows":41,"n_cols":7,"rows_kept":41}
[null,"Souhrn rozpočtu",{"$nulls":4}," "]
[]
[null,"Kategorie","Předpokládané náklady ","Skutečné náklady ","Rozdíl "]
[null,"Děti",{"v":140,"d":"140 Kč"},{"v":140,"d":"140 Kč"},{"v":0,"d":"0 Kč"}]
[null,"Mimoškolní aktivity",{"v":40,"d":"40 Kč"},{"v":40,"d":"40 Kč"},{"v":0,"d":"0 Kč"}]
[null,"Školní pomůcky",null,null,{"v":0,"d":"0 Kč"}]
[null,"Zdravotní péče",null,null,{"v":0,"d":"0 Kč"}]
[null,"Školné",{"v":100,"d":"100 Kč"},{"v":100,"d":"100 Kč"},{"v":0,"d":"0 Kč"}]
[]
[null,"Zábava",{"v":400,"d":"400 Kč"},{"v":358,"d":"358 Kč"},{"v":42,"d":"42 Kč"}]
[null,"Koncerty",{"v":50,"d":"50 Kč"},{"v":40,"d":"40 Kč"},{"v":10,"d":"10 Kč"}]
[null,"Divadlo",{"v":200,"d":"200 Kč"},{"v":150,"d":"150 Kč"},{"v":50,"d":"50 Kč"}]
[null,"Filmy",{"v":50,"d":"50 Kč"},{"v":28,"d":"28 Kč"},{"v":22,"d":"22 Kč"}]
[null,"Hudba (CD, stahovaná hudba atd.)",{"v":50,"d":"50 Kč"},{"v":30,"d":"30 Kč"},{"v":20,"d":"20 Kč"}]
[null,"Sportovní akce",{"v":0,"d":"0 Kč"},{"v":40,"d":"40 Kč"},{"v":-40,"d":"-40 Kč"}]
[null,"Video/DVD (nákup)",{"v":20,"d":"20 Kč"},{"v":50,"d":"50 Kč"},{"v":-30,"d":"-30 Kč"}]
[null,"Video/DVD (půjčování)",{"v":30,"d":"30 Kč"},{"v":20,"d":"20 Kč"},{"v":10,"d":"10 Kč"}]
[]
[null,"Jídlo",{"v":1100,"d":"1,100 Kč"},{"v":1320,"d":"1,320 Kč"},{"v":-220,"d":"-220 Kč"}]
[]
[null,"Dárky a charita",{"v":100,"d":"100 Kč"},{"v":125,"d":"125 Kč"},{"v":-25,"d":"-25 Kč"}]
[]
[null,"Bydlení",{"v":2830,"d":"2,830 Kč"},{"v":2702,"d":"2,702 Kč"},{"v":-72,"d":"-72 Kč"}]
[]
[null,"Pojištění",{"v":900,"d":"900 Kč"},{"v":900,"d":"900 Kč"},{"v":0,"d":"0 Kč"}]
[]
[null,"Půjčky",{"v":200,"d":"200 Kč"},{"v":200,"d":"200 Kč"},{"v":0,"d":"0 Kč"}]
[]
[null,"Osobní péče",{"v":150,"d":"150 Kč"},{"v":140,"d":"140 Kč"},{"v":10,"d":"10 Kč"}]
[]
[null,"Domácí zvířata",{"v":170,"d":"170 Kč"},{"v":100,"d":"100 Kč"},{"v":70,"d":"70 Kč"}]
[]
[null,"Daně",{"v":300,"d":"300 Kč"},{"v":300,"d":"300 Kč"},{"v":0,"d":"0 Kč"}]
[]
[null,"Doprava",{"v":1425,"d":"1,425 Kč"},{"v":1375,"d":"1,375 Kč"},{"v":50,"d":"50 Kč"}]
[]
[null,"Spoření",{"v":200,"d":"200 Kč"},{"v":200,"d":"200 Kč"},{"v":0,"d":"0 Kč"}]
[null,"Investiční účet",{"v":200,"d":"200 Kč"},{"v":200,"d":"200 Kč"},{"v":0,"d":"0 Kč"}]
[null,"Penzijní pojištění",null,null,{"v":0,"d":"0 Kč"}]
[]
[null,"Grand Total",{"v":7915,"d":"7,915 Kč"},{"v":7860,"d":"7,860 Kč"},{"v":-145,"d":"-145 Kč"}]

{"sheet":"Měsíční výdaje","index":2,"n_rows":61,"n_cols":8,"rows_kept":61}
[{"$nulls":7}," "]
[null,"Popis","Kategorie","Předpokládané náklady","Skutečné náklady","Rozdíl","Přehled skutečných nákladů"]
[null,"Mimoškolní aktivity","Děti",{"v":40,"d":"40 Kč"},{"v":40,"d":"40 Kč"},{"$f":"IF(OR(Tabulka_měsíčních_výdajů[[#This Row],[Předpokládané náklady]]=\"\",Tabulka_měsíčních_výdajů[[#This Row],[Skutečné náklady]]=\"\"),\"\",Tabulka_měsíčních_výdajů[[#This Row],[Předpokládané náklady]]-Tabulka_měsíčních_výdajů[[#This Row],[Skutečné náklady]])","v":{"v":0,"d":"0 Kč"}},{"$f":"Tabulka_měsíčních_výdajů[[#This Row],[Skutečné náklady]]","v":40}]
[null,"Zdravotní péče","Děti",null,null,{"$f":"IF(OR(Tabulka_měsíčních_výdajů[[#This Row],[Předpokládané náklady]]=\"\",Tabulka_měsíčních_výdajů[[#This Row],[Skutečné náklady]]=\"\"),\"\",Tabulka_měsíčních_výdajů[[#This Row],[Předpokládané náklady]]-Tabulka_měsíčních_výdajů[[#This Row],[Skutečné náklady]])","v":""},{"$f":"Tabulka_měsíčních_výdajů[[#This Row],[Skutečné náklady]]","v":0}]
[null,"Školní pomůcky","Děti",null,null,{"$f":"IF(OR(Tabulka_měsíčních_výdajů[[#This Row],[Předpokládané náklady]]=\"\",Tabulka_měsíčních_výdajů[[#This Row],[Skutečné náklady]]=\"\"),\"\",Tabulka_měsíčních_výdajů[[#This Row],[Předpokládané náklady]]-Tabulka_měsíčních_výdajů[[#This Row],[Skutečné náklady]])","v":""},{"$f":"Tabulka_měsíčních_výdajů[[#This Row],[Skutečné náklady]]","v":0}]
[null,"Školné","Děti",{"v":100,"d":"100 Kč"},{"v":100,"d":"100 Kč"},{"$f":"IF(OR(Tabulka_měsíčních_výdajů[[#This Row],[Předpokládané náklady]]=\"\",Tabulka_měsíčních_výdajů[[#This Row],[Skutečné náklady]]=\"\"),\"\",Tabulka_měsíčních_výdajů[[#This Row],[Předpokládané náklady]]-Tabulka_měsíčních_výdajů[[#This Row],[Skutečné náklady]])","v":{"v":0,"d":"0 Kč"}},{"$f":"Tabulka_měsíčních_výdajů[[#This Row],[Skutečné náklady]]","v":100}]
[null,"Koncerty","Zábava",{"v":50,"d":"50 Kč"},{"v":40,"d":"40 Kč"},{"$f":"IF(OR(Tabulka_měsíčních_výdajů[[#This Row],[Předpokládané náklady]]=\"\",Tabulka_měsíčních_výdajů[[#This Row],[Skutečné náklady]]=\"\"),\"\",Tabulka_měsíčních_výdajů[[#This Row],[Předpokládané náklady]]-Tabulka_měsíčních_výdajů[[#This Row],[Skutečné náklady]])","v":{"v":10,"d":"10 Kč"}},{"$f":"Tabulka_měsíčních_výdajů[[#This Row],[Skutečné náklady]]","v":40}]
[null,"Divadlo","Zábava",{"v":200,"d":"200 Kč"},{"v":150,"d":"150 Kč"},{"$f":"IF(OR(Tabulka_měsíčních_výdajů[[#This Row],[Předpokládané náklady]]=\"\",Tabulka_měsíčních_výdajů[[#This Row],[Skutečné náklady]]=\"\"),\"\",Tabulka_měsíčních_výdajů[[#This Row],[Předpokládané náklady]]-Tabulka_měsíčních_výdajů[[#This Row],[Skutečné náklady]])","v":{"v":50,"d":"50 Kč"}},{"$f":"Tabulka_měsíčních_výdajů[[#This Row],[Skutečné náklady]]","v":{"v":150,"d":"$150"}}]
[null,"Filmy","Zábava",{"v":50,"d":"50 Kč"},{"v":28,"d":"28 Kč"},{"$f":"IF(OR(Tabulka_měsíčních_výdajů[[#This Row],[Předpokládané náklady]]=\"\",Tabulka_měsíčních_výdajů[[#This Row],[Skutečné náklady]]=\"\"),\"\",Tabulka_měsíčních_výdajů[[#This Row],[Předpokládané náklady]]-Tabulka_měsíčních_výdajů[[#This Row],[Skutečné náklady]])","v":{"v":22,"d":"22 Kč"}},{"$f":"Tabulka_měsíčních_výdajů[[#This Row],[Skutečné náklady]]","v":28}]
[null,"Hudba (CD, stahovaná hudba atd.)","Zábava",{"v":50,"d":"50 Kč"},{"v":30,"d":"30 Kč"},{"$f":"IF(OR(Tabulka_měsíčních_výdajů[[#This Row],[Předpokládané náklady]]=\"\",Tabulka_měsíčních_výdajů[[#This Row],[Skutečné náklady]]=\"\"),\"\",Tabulka_měsíčních_výdajů[[#This Row],[Předpokládané náklady]]-Tabulka_měsíčních_výdajů[[#This Row],[Skutečné náklady]])","v":{"v":20,"d":"20 Kč"}},{"$f":"Tabulka_měsíčních_výdajů[[#This Row],[Skutečné náklady]]","v":30}]
[null,"Sportovní akce","Zábava",{"v":0,"d":"0 Kč"},{"v":40,"d":"40 Kč"},{"$f":"IF(OR(Tabulka_měsíčních_výdajů[[#This Row],[Předpokládané náklady]]=\"\",Tabulka_měsíčních_výdajů[[#This Row],[Skutečné náklady]]=\"\"),\"\",Tabulka_měsíčních_výdajů[[#This Row],[Předpokládané náklady]]-Tabulka_měsíčních_výdajů[[#This Row],[Skutečné náklady]])","v":{"v":-40,"d":"-40 Kč"}},{"$f":"Tabulka_měsíčních_výdajů[[#This Row],[Skutečné náklady]]","v":40}]
[null,"Video/DVD (nákup)","Zábava",{"v":20,"d":"20 Kč"},{"v":50,"d":"50 Kč"},{"$f":"IF(OR(Tabulka_měsíčních_výdajů[[#This Row],[Předpokládané náklady]]=\"\",Tabulka_měsíčních_výdajů[[#This Row],[Skutečné náklady]]=\"\"),\"\",Tabulka_měsíčních_výdajů[[#This Row],[Předpokládané náklady]]-Tabulka_měsíčních_výdajů[[#This Row],[Skutečné náklady]])","v":{"v":-30,"d":"-30 Kč"}},{"$f":"Tabulka_měsíčních_výdajů[[#This Row],[Skutečné náklady]]","v":50}]
[null,"Video/DVD (půjčování)","Zábava",{"v":30,"d":"30 Kč"},{"v":20,"d":"20 Kč"},{"$f":"IF(OR(Tabulka_měsíčních_výdajů[[#This Row],[Předpokládané náklady]]=\"\",Tabulka_měsíčních_výdajů[[#This Row],[Skutečné náklady]]=\"\"),\"\",Tabulka_měsíčních_výdajů[[#This Row],[Předpokládané náklady]]-Tabulka_měsíčních_výdajů[[#This Row],[Skutečné náklady]])","v":{"v":10,"d":"10 Kč"}},{"$f":"Tabulka_měsíčních_výdajů[[#This Row],[Skutečné náklady]]","v":20}]
[null,"Večeře v restauraci","Jídlo",{"v":1000,"d":"1,000 Kč"},{"v":1200,"d":"1,200 Kč"},{"$f":"IF(OR(Tabulka_měsíčních_výdajů[[#This Row],[Předpokládané náklady]]=\"\",Tabulka_měsíčních_výdajů[[#This Row],[Skutečné náklady]]=\"\"),\"\",Tabulka_měsíčních_výdajů[[#This Row],[Předpokládané náklady]]-Tabulka_měsíčních_výdajů[[#This Row],[Skutečné náklady]])","v":{"v":-200,"d":"-200 Kč"}},{"$f":"Tabulka_měsíčních_výdajů[[#This Row],[Skutečné náklady]]","v":1200}]
[null,"Potraviny","Jídlo",{"v":100,"d":"100 Kč"},{"v":120,"d":"120 Kč"},{"$f":"IF(OR(Tabulka_měsíčních_výdajů[[#This Row],[Předpokládané náklady]]=\"\",Tabulka_měsíčních_výdajů[[#This Row],[Skutečné náklady]]=\"\"),\"\",Tabulka_měsíčních_výdajů[[#This Row],[Předpokládané náklady]]-Tabulka_měsíčních_výdajů[[#This Row],[Skutečné náklady]])","v":{"v":-20,"d":"-20 Kč"}},{"$f":"Tabulka_měsíčních_výdajů[[#This Row],[Skutečné náklady]]","v":120}]
[null,"Charita 1","Dárky a charita",{"v":75,"d":"75 Kč"},{"v":100,"d":"100 Kč"},{"$f":"IF(OR(Tabulka_měsíčních_výdajů[[#This Row],[Předpokládané náklady]]=\"\",Tabulka_měsíčních_výdajů[[#This Row],[Skutečné náklady]]=\"\"),\"\",Tabulka_měsíčních_výdajů[[#This Row],[Předpokládané náklady]]-Tabulka_měsíčních_výdajů[[#This Row],[Skutečné náklady]])","v":{"v":-25,"d":"-25 Kč"}},{"$f":"Tabulka_měsíčních_výdajů[[#This Row],[Skutečné náklady]]","v":100}]
[null,"Charita 2","Dárky a charita",{"v":25,"d":"25 Kč"},{"v":25,"d":"25 Kč"},{"$f":"IF(OR(Tabulka_měsíčních_výdajů[[#This Row],[Předpokládané náklady]]=\"\",Tabulka_měsíčních_výdajů[[#This Row],[Skutečné náklady]]=\"\"),\"\",Tabulka_měsíčních_výdajů[[#This Row],[Předpokládané náklady]]-Tabulka_měsíčních_výdajů[[#This Row],[Skutečné náklady]])","v":{"v":0,"d":"0 Kč"}},{"$f":"Tabulka_měsíčních_výdajů[[#This Row],[Skutečné náklady]]","v":25}]
[null,"Dárek 1","Dárky a charita",null,null,{"$f":"IF(OR(Tabulka_měsíčních_výdajů[[#This Row],[Předpokládané náklady]]=\"\",Tabulka_měsíčních_výdajů[[#This Row],[Skutečné náklady]]=\"\"),\"\",Tabulka_měsíčních_výdajů[[#This Row],[Předpokládané náklady]]-Tabulka_měsíčních_výdajů[[#This Row],[Skutečné náklady]])","v":""},{"$f":"Tabulka_měsíčních_výdajů[[#This Row],[Skutečné náklady]]","v":0}]
[null,"Dárek 2","Dárky a charita",null,null,{"$f":"IF(OR(Tabulka_měsíčních_výdajů[[#This Row],[Předpokládané náklady]]=\"\",Tabulka_měsíčních_výdajů[[#This Row],[Skutečné náklady]]=\"\"),\"\",Tabulka_měsíčních_výdajů[[#This Row],[Předpokládané náklady]]-Tabulka_měsíčních_výdajů[[#This Row],[Skutečné náklady]])","v":""},{"$f":"Tabulka_měsíčních_výdajů[[#This Row],[Skutečné náklady]]","v":0}]
[null,"Kabel/satelit","Bydlení",{"v":100,"d":"100 Kč"},{"v":100,"d":"100 Kč"},{"$f":"IF(OR(Tabulka_měsíčních_výdajů[[#This Row],[Předpokládané náklady]]=\"\",Tabulka_měsíčních_výdajů[[#This Row],[Skutečné náklady]]=\"\"),\"\",Tabulka_měsíčních_výdajů[[#This Row],[Předpokládané náklady]]-Tabulka_měsíčních_výdajů[[#This Row],[Skutečné náklady]])","v":{"v":0,"d":"0 Kč"}},{"$f":"Tabulka_měsíčních_výdajů[[#This Row],[Skutečné náklady]]","v":100}]
[null,"Elektřina","Bydlení",{"v":45,"d":"45 Kč"},{"v":50,"d":"50 Kč"},{"$f":"IF(OR(Tabulka_měsíčních_výdajů[[#This Row],[Předpokládané náklady]]=\"\",Tabulka_měsíčních_výdajů[[#This Row],[Skutečné náklady]]=\"\"),\"\",Tabulka_měsíčních_výdajů[[#This Row],[Předpokládané náklady]]-Tabulka_měsíčních_výdajů[[#This Row],[Skutečné náklady]])","v":{"v":-5,"d":"-5 Kč"}},{"$f":"Tabulka_měsíčních_výdajů[[#This Row],[Skutečné náklady]]","v":50}]
[null,"Plyn","Bydlení",{"v":300,"d":"300 Kč"},{"v":400,"d":"400 Kč"},{"$f":"IF(OR(Tabulka_měsíčních_výdajů[[#This Row],[Předpokládané náklady]]=\"\",Tabulka_měsíčních_výdajů[[#This Row],[Skutečné náklady]]=\"\"),\"\",Tabulka_měsíčních_výdajů[[#This Row],[Předpokládané náklady]]-Tabulka_měsíčních_výdajů[[#This Row],[Skutečné náklady]])","v":{"v":-100,"d":"-100 Kč"}},{"$f":"Tabulka_měsíčních_výdajů[[#This Row],[Skutečné náklady]]","v":400}]
[null,"Úklid domácnosti","Bydlení",{"v":200,"d":"200 Kč"},null,{"$f":"IF(OR(Tabulka_měsíčních_výdajů[[#This Row],[Předpokládané náklady]]=\"\",Tabulka_měsíčních_výdajů[[#This Row],[Skutečné náklady]]=\"\"),\"\",Tabulka_měsíčních_výdajů[[#This Row],[Předpokládané náklady]]-Tabulka_měsíčních_výdajů[[#This Row],[Skutečné náklady]])","v":""},{"$f":"Tabulka_měsíčních_výdajů[[#This Row],[Skutečné náklady]]","v":0}]
[null,"Údržba","Bydlení",{"v":200,"d":"200 Kč"},{"v":150,"d":"150 Kč"},{"$f":"IF(OR(Tabulka_měsíčních_výdajů[[#This Row],[Předpokládané náklady]]=\"\",Tabulka_měsíčních_výdajů[[#This Row],[Skutečné náklady]]=\"\"),\"\",Tabulka_měsíčních_výdajů[[#This Row],[Předpokládané náklady]]-Tabulka_měsíčních_výdajů[[#This Row],[Skutečné náklady]])","v":{"v":50,"d":"50 Kč"}},{"$f":"Tabulka_měsíčních_výdajů[[#This Row],[Skutečné náklady]]","v":150}]
[null,"Hypotéka nebo nájemné","Bydlení",{"v":1700,"d":"1,700 Kč"},{"v":1700,"d":"1,700 Kč"},{"$f":"IF(OR(Tabulka_měsíčních_výdajů[[#This Row],[Předpokládané náklady]]=\"\",Tabulka_měsíčních_výdajů[[#This Row],[Skutečné náklady]]=\"\"),\"\",Tabulka_měsíčních_výdajů[[#This Row],[Předpokládané náklady]]-Tabulka_měsíčních_výdajů[[#This Row],[Skutečné náklady]])","v":{"v":0,"d":"0 Kč"}},{"$f":"Tabulka_měsíčních_výdajů[[#This Row],[Skutečné náklady]]","v":1700}]
[null,"Zemní plyn / nafta","Bydlení",null,null,{"$f":"IF(OR(Tabulka_měsíčních_výdajů[[#This Row],[Předpokládané náklady]]=\"\",Tabulka_měsíčních_výdajů[[#This Row],[Skutečné náklady]]=\"\"),\"\",Tabulka_měsíčních_výdajů[[#This Row],[Předpokládané náklady]]-Tabulka_měsíčních_výdajů[[#This Row],[Skutečné náklady]])","v":""},{"$f":"Tabulka_měsíčních_výdajů[[#This Row],[Skutečné náklady]]","v":0}]
[null,"Připojení k internetu","Bydlení",{"v":100,"d":"100 Kč"},{"v":100,"d":"100 Kč"},{"$f":"IF(OR(Tabulka_měsíčních_výdajů[[#This Row],[Předpokládané náklady]]=\"\",Tabulka_měsíčních_výdajů[[#This Row],[Skutečné náklady]]=\"\"),\"\",Tabulka_měsíčních_výdajů[[#This Row],[Předpokládané náklady]]-Tabulka_měsíčních_výdajů[[#This Row],[Skutečné náklady]])","v":{"v":0,"d":"0 Kč"}},{"$f":"Tabulka_měsíčních_výdajů[[#This Row],[Skutečné náklady]]","v":100}]
[null,"Telefon (mobilní)","Bydlení",{"v":60,"d":"60 Kč"},{"v":60,"d":"60 Kč"},{"$f":"IF(OR(Tabulka_měsíčních_výdajů[[#This Row],[Předpokládané náklady]]=\"\",Tabulka_měsíčních_výdajů[[#This Row],[Skutečné náklady]]=\"\"),\"\",Tabulka_měsíčních_výdajů[[#This Row],[Předpokládané náklady]]-Tabulka_měsíčních_výdajů[[#This Row],[Skutečné náklady]])","v":{"v":0,"d":"0 Kč"}},{"$f":"Tabulka_měsíčních_výdajů[[#This Row],[Skutečné náklady]]","v":60}]
[null,"Telefon (pevná linka)","Bydlení",{"v":35,"d":"35 Kč"},{"v":39,"d":"39 Kč"},{"$f":"IF(OR(Tabulka_měsíčních_výdajů[[#This Row],[Předpokládané náklady]]=\"\",Tabulka_měsíčních_výdajů[[#This Row],[Skutečné náklady]]=\"\"),\"\",Tabulka_měsíčních_výdajů[[#This Row],[Předpokládané náklady]]-Tabulka_měsíčních_výdajů[[#This Row],[Skutečné náklady]])","v":{"v":-4,"d":"-4 Kč"}},{"$f":"Tabulka_měsíčních_výdajů[[#This Row],[Skutečné náklady]]","v":39}]
[null,"Domácí potřeby","Bydlení",{"v":40,"d":"40 Kč"},{"v":55,"d":"55 Kč"},{"$f":"IF(OR(Tabulka_měsíčních_výdajů[[#This Row],[Předpokládané náklady]]=\"\",Tabulka_měsíčních_výdajů[[#This Row],[Skutečné náklady]]=\"\"),\"\",Tabulka_měsíčních_výdajů[[#This Row],[Předpokládané náklady]]-Tabulka_měsíčních_výdajů[[#This Row],[Skutečné náklady]])","v":{"v":-15,"d":"-15 Kč"}},{"$f":"Tabulka_měsíčních_výdajů[[#This Row],[Skutečné náklady]]","v":55}]
[null,"Poplatky za odpad a recyklaci","Bydlení",{"v":25,"d":"25 Kč"},{"v":22,"d":"22 Kč"},{"$f":"IF(OR(Tabulka_měsíčních_výdajů[[#This Row],[Předpokládané náklady]]=\"\",Tabulka_měsíčních_výdajů[[#This Row],[Skutečné náklady]]=\"\"),\"\",Tabulka_měsíčních_výdajů[[#This Row],[Předpokládané náklady]]-Tabulka_měsíčních_výdajů[[#This Row],[Skutečné náklady]])","v":{"v":3,"d":"3 Kč"}},{"$f":"Tabulka_měsíčních_výdajů[[#This Row],[Skutečné náklady]]","v":22}]
[null,"Vodné a stočné","Bydlení",{"v":25,"d":"25 Kč"},{"v":26,"d":"26 Kč"},{"$f":"IF(OR(Tabulka_měsíčních_výdajů[[#This Row],[Předpokládané náklady]]=\"\",Tabulka_měsíčních_výdajů[[#This Row],[Skutečné náklady]]=\"\"),\"\",Tabulka_měsíčních_výdajů[[#This Row],[Předpokládané náklady]]-Tabulka_měsíčních_výdajů[[#This Row],[Skutečné náklady]])","v":{"v":-1,"d":"-1 Kč"}},{"$f":"Tabulka_měsíčních_výdajů[[#This Row],[Skutečné náklady]]","v":26}]
[null,"Zdraví","Pojištění",{"v":400,"d":"400 Kč"},{"v":400,"d":"400 Kč"},{"$f":"IF(OR(Tabulka_měsíčních_výdajů[[#This Row],[Předpokládané náklady]]=\"\",Tabulka_měsíčních_výdajů[[#This Row],[Skutečné náklady]]=\"\"),\"\",Tabulka_měsíčních_výdajů[[#This Row],[Předpokládané náklady]]-Tabulka_měsíčních_výdajů[[#This Row],[Skutečné náklady]])","v":{"v":0,"d":"0 Kč"}},{"$f":"Tabulka_měsíčních_výdajů[[#This Row],[Skutečné náklady]]","v":400}]
[null,"Domácnost","Pojištění",{"v":400,"d":"400 Kč"},{"v":400,"d":"400 Kč"},{"$f":"IF(OR(Tabulka_měsíčních_výdajů[[#This Row],[Předpokládané náklady]]=\"\",Tabulka_měsíčních_výdajů[[#This Row],[Skutečné náklady]]=\"\"),\"\",Tabulka_měsíčních_výdajů[[#This Row],[Předpokládané náklady]]-Tabulka_měsíčních_výdajů[[#This Row],[Skutečné náklady]])","v":{"v":0,"d":"0 Kč"}},{"$f":"Tabulka_měsíčních_výdajů[[#This Row],[Skutečné náklady]]","v":400}]
[null,"Životní","Pojištění",{"v":100,"d":"100 Kč"},{"v":100,"d":"100 Kč"},{"$f":"IF(OR(Tabulka_měsíčních_výdajů[[#This Row],[Předpokládané náklady]]=\"\",Tabulka_měsíčních_výdajů[[#This Row],[Skutečné náklady]]=\"\"),\"\",Tabulka_měsíčních_výdajů[[#This Row],[Předpokládané náklady]]-Tabulka_měsíčních_výdajů[[#This Row],[Skutečné náklady]])","v":{"v":0,"d":"0 Kč"}},{"$f":"Tabulka_měsíčních_výdajů[[#This Row],[Skutečné náklady]]","v":100}]
[null,"Kreditní karta 1","Půjčky",{"v":200,"d":"200 Kč"},{"v":200,"d":"200 Kč"},{"$f":"IF(OR(Tabulka_měsíčních_výdajů[[#This Row],[Předpokládané náklady]]=\"\",Tabulka_měsíčních_výdajů[[#This Row],[Skutečné náklady]]=\"\"),\"\",Tabulka_měsíčních_výdajů[[#This Row],[Předpokládané náklady]]-Tabulka_měsíčních_výdajů[[#This Row],[Skutečné náklady]])","v":{"v":0,"d":"0 Kč"}},{"$f":"Tabulka_měsíčních_výdajů[[#This Row],[Skutečné náklady]]","v":200}]
[null,"Kreditní karta 2","Půjčky",null,null,{"$f":"IF(OR(Tabulka_měsíčních_výdajů[[#This Row],[Předpokládané náklady]]=\"\",Tabulka_měsíčních_výdajů[[#This Row],[Skutečné náklady]]=\"\"),\"\",Tabulka_měsíčních_výdajů[[#This Row],[Předpokládané náklady]]-Tabulka_měsíčních_výdajů[[#This Row],[Skutečné náklady]])","v":""},{"$f":"Tabulka_měsíčních_výdajů[[#This Row],[Skutečné náklady]]","v":0}]
[null,"Kreditní karta 3","Půjčky",null,null,{"$f":"IF(OR(Tabulka_měsíčních_výdajů[[#This Row],[Předpokládané náklady]]=\"\",Tabulka_měsíčních_výdajů[[#This Row],[Skutečné náklady]]=\"\"),\"\",Tabulka_měsíčních_výdajů[[#This Row],[Předpokládané náklady]]-Tabulka_měsíčních_výdajů[[#This Row],[Skutečné náklady]])","v":""},{"$f":"Tabulka_měsíčních_výdajů[[#This Row],[Skutečné náklady]]","v":0}]
[null,"Osobní","Půjčky",null,null,{"$f":"IF(OR(Tabulka_měsíčních_výdajů[[#This Row],[Předpokládané náklady]]=\"\",Tabulka_měsíčních_výdajů[[#This Row],[Skutečné náklady]]=\"\"),\"\",Tabulka_měsíčních_výdajů[[#This Row],[Předpokládané náklady]]-Tabulka_měsíčních_výdajů[[#This Row],[Skutečné náklady]])","v":""},{"$f":"Tabulka_měsíčních_výdajů[[#This Row],[Skutečné náklady]]","v":0}]
[null,"Studentské","Půjčky",null,null,{"$f":"IF(OR(Tabulka_měsíčních_výdajů[[#This Row],[Předpokládané náklady]]=\"\",Tabulka_měsíčních_výdajů[[#This Row],[Skutečné náklady]]=\"\"),\"\",Tabulka_měsíčních_výdajů[[#This Row],[Předpokládané náklady]]-Tabulka_měsíčních_výdajů[[#This Row],[Skutečné náklady]])","v":""},{"$f":"Tabulka_měsíčních_výdajů[[#This Row],[Skutečné náklady]]","v":0}]
[null,"Oblečení","Osobní péče",{"v":150,"d":"150 Kč"},{"v":140,"d":"140 Kč"},{"$f":"IF(OR(Tabulka_měsíčních_výdajů[[#This Row],[Předpokládané náklady]]=\"\",Tabulka_měsíčních_výdajů[[#This Row],[Skutečné náklady]]=\"\"),\"\",Tabulka_měsíčních_výdajů[[#This Row],[Předpokládané náklady]]-Tabulka_měsíčních_výdajů[[#This Row],[Skutečné náklady]])","v":{"v":10,"d":"10 Kč"}},{"$f":"Tabulka_měsíčních_výdajů[[#This Row],[Skutečné náklady]]","v":140}]
[null,"Čistírna","Osobní péče",null,null,{"$f":"IF(OR(Tabulka_měsíčních_výdajů[[#This Row],[Předpokládané náklady]]=\"\",Tabulka_měsíčních_výdajů[[#This Row],[Skutečné náklady]]=\"\"),\"\",Tabulka_měsíčních_výdajů[[#This Row],[Předpokládané náklady]]-Tabulka_měsíčních_výdajů[[#This Row],[Skutečné náklady]])","v":""},{"$f":"Tabulka_měsíčních_výdajů[[#This Row],[Skutečné náklady]]","v":0}]
[null,"Kadeřnictví a manikúra","Osobní péče",null,null,{"$f":"IF(OR(Tabulka_měsíčních_výdajů[[#This Row],[Předpokládané náklady]]=\"\",Tabulka_měsíčních_výdajů[[#This Row],[Skutečné náklady]]=\"\"),\"\",Tabulka_měsíčních_výdajů[[#This Row],[Předpokládané náklady]]-Tabulka_měsíčních_výdajů[[#This Row],[Skutečné náklady]])","v":""},{"$f":"Tabulka_měsíčních_výdajů[[#This Row],[Skutečné náklady]]","v":0}]
[null,"Fitness","Osobní péče",null,null,{"$f":"IF(OR(Tabulka_měsíčních_výdajů[[#This Row],[Předpokládané náklady]]=\"\",Tabulka_měsíčních_výdajů[[#This Row],[Skutečné náklady]]=\"\"),\"\",Tabulka_měsíčních_výdajů[[#This Row],[Předpokládané náklady]]-Tabulka_měsíčních_výdajů[[#This Row],[Skutečné náklady]])","v":""},{"$f":"Tabulka_měsíčních_výdajů[[#This Row],[Skutečné náklady]]","v":0}]
[null,"Zdravotní péče","Osobní péče",null,null,{"$f":"IF(OR(Tabulka_měsíčních_výdajů[[#This Row],[Předpokládané náklady]]=\"\",Tabulka_měsíčních_výdajů[[#This Row],[Skutečné náklady]]=\"\"),\"\",Tabulka_měsíčních_výdajů[[#This Row],[Předpokládané náklady]]-Tabulka_měsíčních_výdajů[[#This Row],[Skutečné náklady]])","v":""},{"$f":"Tabulka_měsíčních_výdajů[[#This Row],[Skutečné náklady]]","v":0}]
[null,"Jídlo","Domácí zvířata",{"v":150,"d":"150 Kč"},{"v":75,"d":"75 Kč"},{"$f":"IF(OR(Tabulka_měsíčních_výdajů[[#This Row],[Předpokládané náklady]]=\"\",Tabulka_měsíčních_výdajů[[#This Row],[Skutečné náklady]]=\"\"),\"\",Tabulka_měsíčních_výdajů[[#This Row],[Předpokládané náklady]]-Tabulka_měsíčních_výdajů[[#This Row],[Skutečné náklady]])","v":{"v":75,"d":"75 Kč"}},{"$f":"Tabulka_měsíčních_výdajů[[#This Row],[Skutečné náklady]]","v":75}]
[null,"Péče o vzhled","Domácí zvířata",{"v":20,"d":"20 Kč"},{"v":25,"d":"25 Kč"},{"$f":"IF(OR(Tabulka_měsíčních_výdajů[[#This Row],[Předpokládané náklady]]=\"\",Tabulka_měsíčních_výdajů[[#This Row],[Skutečné náklady]]=\"\"),\"\",Tabulka_měsíčních_výdajů[[#This Row],[Předpokládané náklady]]-Tabulka_měsíčních_výdajů[[#This Row],[Skutečné náklady]])","v":{"v":-5,"d":"-5 Kč"}},{"$f":"Tabulka_měsíčních_výdajů[[#This Row],[Skutečné náklady]]","v":25}]
[null,"Zdravotní péče","Domácí zvířata",null,null,{"$f":"IF(OR(Tabulka_měsíčních_výdajů[[#This Row],[Předpokládané náklady]]=\"\",Tabulka_měsíčních_výdajů[[#This Row],[Skutečné náklady]]=\"\"),\"\",Tabulka_měsíčních_výdajů[[#This Row],[Předpokládané náklady]]-Tabulka_měsíčních_výdajů[[#This Row],[Skutečné náklady]])","v":""},{"$f":"Tabulka_měsíčních_výdajů[[#This Row],[Skutečné náklady]]","v":0}]
[null,"Hračky","Domácí zvířata",null,null,{"$f":"IF(OR(Tabulka_měsíčních_výdajů[[#This Row],[Předpokládané náklady]]=\"\",Tabulka_měsíčních_výdajů[[#This Row],[Skutečné náklady]]=\"\"),\"\",Tabulka_měsíčních_výdajů[[#This Row],[Předpokládané náklady]]-Tabulka_měsíčních_výdajů[[#This Row],[Skutečné náklady]])","v":""},{"$f":"Tabulka_měsíčních_výdajů[[#This Row],[Skutečné náklady]]","v":0}]
[null,"Investiční účet","Spoření",{"v":200,"d":"200 Kč"},{"v":200,"d":"200 Kč"},{"$f":"IF(OR(Tabulka_měsíčních_výdajů[[#This Row],[Předpokládané náklady]]=\"\",Tabulka_měsíčních_výdajů[[#This Row],[Skutečné náklady]]=\"\"),\"\",Tabulka_měsíčních_výdajů[[#This Row],[Předpokládané náklady]]-Tabulka_měsíčních_výdajů[[#This Row],[Skutečné náklady]])","v":{"v":0,"d":"0 Kč"}},{"$f":"Tabulka_měsíčních_výdajů[[#This Row],[Skutečné náklady]]","v":200}]
[null,"Penzijní pojištění","Spoření",null,null,{"$f":"IF(OR(Tabulka_měsíčních_výdajů[[#This Row],[Předpokládané náklady]]=\"\",Tabulka_měsíčních_výdajů[[#This Row],[Skutečné náklady]]=\"\"),\"\",Tabulka_měsíčních_výdajů[[#This Row],[Předpokládané náklady]]-Tabulka_měsíčních_výdajů[[#This Row],[Skutečné náklady]])","v":""},{"$f":"Tabulka_měsíčních_výdajů[[#This Row],[Skutečné náklady]]","v":0}]
[null,"Daně z příjmů","Daně",{"v":300,"d":"300 Kč"},{"v":300,"d":"300 Kč"},{"$f":"IF(OR(Tabulka_měsíčních_výdajů[[#This Row],[Předpokládané náklady]]=\"\",Tabulka_měsíčních_výdajů[[#This Row],[Skutečné náklady]]=\"\"),\"\",Tabulka_měsíčních_výdajů[[#This Row],[Předpokládané náklady]]-Tabulka_měsíčních_výdajů[[#This Row],[Skutečné náklady]])","v":{"v":0,"d":"0 Kč"}},{"$f":"Tabulka_měsíčních_výdajů[[#This Row],[Skutečné náklady]]","v":300}]
[null,"Obecní poplatky","Daně",null,null,{"$f":"IF(OR(Tabulka_měsíčních_výdajů[[#This Row],[Předpokládané náklady]]=\"\",Tabulka_měsíčních_výdajů[[#This Row],[Skutečné náklady]]=\"\"),\"\",Tabulka_měsíčních_výdajů[[#This Row],[Předpokládané náklady]]-Tabulka_měsíčních_výdajů[[#This Row],[Skutečné náklady]])","v":""},{"$f":"Tabulka_měsíčních_výdajů[[#This Row],[Skutečné náklady]]","v":0}]
[null,"Daně z nemovitostí","Daně",null,null,{"$f":"IF(OR(Tabulka_měsíčních_výdajů[[#This Row],[Předpokládané náklady]]=\"\",Tabulka_měsíčních_výdajů[[#This Row],[Skutečné náklady]]=\"\"),\"\",Tabulka_měsíčních_výdajů[[#This Row],[Předpokládané náklady]]-Tabulka_měsíčních_výdajů[[#This Row],[Skutečné náklady]])","v":""},{"$f":"Tabulka_měsíčních_výdajů[[#This Row],[Skutečné náklady]]","v":0}]
[null,"Autobusy/taxi","Doprava",{"v":100,"d":"100 Kč"},{"v":150,"d":"150 Kč"},{"$f":"IF(OR(Tabulka_měsíčních_výdajů[[#This Row],[Předpokládané náklady]]=\"\",Tabulka_měsíčních_výdajů[[#This Row],[Skutečné náklady]]=\"\"),\"\",Tabulka_měsíčních_výdajů[[#This Row],[Předpokládané náklady]]-Tabulka_měsíčních_výdajů[[#This Row],[Skutečné náklady]])","v":{"v":-50,"d":"-50 Kč"}},{"$f":"Tabulka_měsíčních_výdajů[[#This Row],[Skutečné náklady]]","v":150}]
[null,"Benzín","Doprava",{"v":450,"d":"450 Kč"},{"v":400,"d":"400 Kč"},{"$f":"IF(OR(Tabulka_měsíčních_výdajů[[#This Row],[Předpokládané náklady]]=\"\",Tabulka_měsíčních_výdajů[[#This Row],[Skutečné náklady]]=\"\"),\"\",Tabulka_měsíčních_výdajů[[#This Row],[Předpokládané náklady]]-Tabulka_měsíčních_výdajů[[#This Row],[Skutečné náklady]])","v":{"v":50,"d":"50 Kč"}},{"$f":"Tabulka_měsíčních_výdajů[[#This Row],[Skutečné náklady]]","v":400}]
[null,"Pojištění","Doprava",{"v":300,"d":"300 Kč"},{"v":300,"d":"300 Kč"},{"$f":"IF(OR(Tabulka_měsíčních_výdajů[[#This Row],[Předpokládané náklady]]=\"\",Tabulka_měsíčních_výdajů[[#This Row],[Skutečné náklady]]=\"\"),\"\",Tabulka_měsíčních_výdajů[[#This Row],[Předpokládané náklady]]-Tabulka_měsíčních_výdajů[[#This Row],[Skutečné náklady]])","v":{"v":0,"d":"0 Kč"}},{"$f":"Tabulka_měsíčních_výdajů[[#This Row],[Skutečné náklady]]","v":300}]
[null,"Poplatky ","Doprava",{"v":25,"d":"25 Kč"},{"v":25,"d":"25 Kč"},{"$f":"IF(OR(Tabulka_měsíčních_výdajů[[#This Row],[Předpokládané náklady]]=\"\",Tabulka_měsíčních_výdajů[[#This Row],[Skutečné náklady]]=\"\"),\"\",Tabulka_měsíčních_výdajů[[#This Row],[Předpokládané náklady]]-Tabulka_měsíčních_výdajů[[#This Row],[Skutečné náklady]])","v":{"v":0,"d":"0 Kč"}},{"$f":"Tabulka_měsíčních_výdajů[[#This Row],[Skutečné náklady]]","v":25}]
[null,"Údržba","Doprava",{"v":100,"d":"100 Kč"},{"v":50,"d":"50 Kč"},{"$f":"IF(OR(Tabulka_měsíčních_výdajů[[#This Row],[Předpokládané náklady]]=\"\",Tabulka_měsíčních_výdajů[[#This Row],[Skutečné náklady]]=\"\"),\"\",Tabulka_měsíčních_výdajů[[#This Row],[Předpokládané náklady]]-Tabulka_měsíčních_výdajů[[#This Row],[Skutečné náklady]])","v":{"v":50,"d":"50 Kč"}},{"$f":"Tabulka_měsíčních_výdajů[[#This Row],[Skutečné náklady]]","v":50}]
[null,"Poplatky za parkování","Doprava",null,null,{"$f":"IF(OR(Tabulka_měsíčních_výdajů[[#This Row],[Předpokládané náklady]]=\"\",Tabulka_měsíčních_výdajů[[#This Row],[Skutečné náklady]]=\"\"),\"\",Tabulka_měsíčních_výdajů[[#This Row],[Předpokládané náklady]]-Tabulka_měsíčních_výdajů[[#This Row],[Skutečné náklady]])","v":""},{"$f":"Tabulka_měsíčních_výdajů[[#This Row],[Skutečné náklady]]","v":0}]
[null,"Splátka automobilu","Doprava",{"v":450,"d":"450 Kč"},{"v":450,"d":"450 Kč"},{"$f":"IF(OR(Tabulka_měsíčních_výdajů[[#This Row],[Předpokládané náklady]]=\"\",Tabulka_měsíčních_výdajů[[#This Row],[Skutečné náklady]]=\"\"),\"\",Tabulka_měsíčních_výdajů[[#This Row],[Předpokládané náklady]]-Tabulka_měsíčních_výdajů[[#This Row],[Skutečné náklady]])","v":{"v":0,"d":"0 Kč"}},{"$f":"Tabulka_měsíčních_výdajů[[#This Row],[Skutečné náklady]]","v":450}]

{"sheet":"Dodatečné informace","index":3,"n_rows":17,"n_cols":6,"rows_kept":17}
[{"$nulls":5}," "]
[null,"Kontingenční tabulka pro rozpočtový graf",null,null,"Seznam kategorií"]
[]
[null,"Kategorie","Náklady ",null,"Pokud chcete přidat kategorii, zadejte ji níže"]
[null,"Domácí zvířata",{"v":100,"d":"100 Kč"},null,"Děti"]
[null,"Dárky a charita",{"v":125,"d":"125 Kč"},null,"Zábava"]
[null,"Děti",{"v":140,"d":"140 Kč"},null,"Jídlo"]
[null,"Osobní péče",{"v":140,"d":"140 Kč"},null,"Dárky a charita"]
[null,"Spoření",{"v":200,"d":"200 Kč"},null,"Bydlení"]
[null,"Půjčky",{"v":200,"d":"200 Kč"},null,"Pojištění"]
[null,"Daně",{"v":300,"d":"300 Kč"},null,"Půjčky"]
[null,"Zábava",{"v":358,"d":"358 Kč"},null,"Osobní péče"]
[null,"Pojištění",{"v":900,"d":"900 Kč"},null,"Domácí zvířata"]
[null,"Jídlo",{"v":1320,"d":"1,320 Kč"},null,"Spoření"]
[null,"Doprava",{"v":1375,"d":"1,375 Kč"},null,"Daně"]
[null,"Bydlení",{"v":2702,"d":"2,702 Kč"},null,"Doprava"]
[null,"Grand Total",{"v":7860,"d":"7,860 Kč"}]